Cogmind - Beta 16.1 *** ADVENTURER MODE // 2026.03.04 @ 19:52:32 Player: slugman Result: Destroyed by YX-3NY(R) with Subdweller Beam Cannon Performance ------------- Evolutions (0) 0 Regions Visited (2) 400 Robots Destroyed (17) 85 Value Destroyed (634) 634 Prototype IDs (1) 20 Alien Tech Used (0) 0 Bonus (0) 0 TOTAL SCORE: 1139 Bonus ------- None Cogmind --------- Core Integrity 0/250 Matter 113/300 Energy 249/250 System Corruption 2% Temperature Cool (9) Movement Walking (140) Location -10/Subcaves Parts ------- > --- POWER (1) -------- Ion Engine > --- PROPULSION (2) --- Makeshift Leg (fused) Makeshift Leg > --- UTILITY (2) ------ Medium Storage Unit Utility Shielding > --- WEAPON (2) ------- Autogun > --- INVENTORY (10) --- Light Ion Engine Improved Ion Engine Heavy Ion Engine Heavy Ion Engine Light Treads Machine Analyzer Small Laser Autogun Barrage Gun Subdweller Shrapnel Launcher Peak State ------------ > --- POWER ------------ Ion Engine > --- PROPULSION ------- Makeshift Leg Makeshift Leg > --- UTILITY ---------- Medium Storage Unit Utility Shielding > --- WEAPON ----------- Subdweller Beam Cannon Grenade Launcher > --- INVENTORY -------- Light Ion Engine Improved Ion Engine Heavy Ion Engine Heavy Ion Engine Light Treads Machine Analyzer Small Laser Autogun Autogun Subdweller Shrapnel Launcher [Rating: 16] Favorites ----------- Power Heavy Ion Engine Engine Heavy Ion Engine Propulsion Light Treads Treads Light Treads Leg Makeshift Leg Utility Utility Shielding Storage Medium Storage Unit Protection Utility Shielding Weapon Autogun Energy Gun Small Laser Energy Cannon Subdweller Beam Cannon Ballistic Gun Autogun Launcher Grenade Launcher Build | -11 -10 -10 ------- Run | Yrd Mat Sub Slots Evolved . | . . . Power . | . . . Propulsion . | . . . Utility . | . . . Weapon . | . . . Parts Attached 17 | 6 5 6 Power 4 | 1 2 1 Engine 4 | 1 2 1 Core . | . . . Reactor . | . . . Propulsion 4 | 2 . 2 Treads 2 | 2 . . Leg 2 | . . 2 Wheel . | . . . Hover . | . . . Flight . | . . . Utility 3 | 1 2 . Device . | . . . Storage 2 | 1 1 . Processor . | . . . Hackware . | . . . Protection 1 | . 1 . Artifact . | . . . Weapon 6 | 2 1 3 Energy Gun 1 | 1 . . Energy Cannon 1 | . . 1 Ballistic Gun 3 | 1 1 1 Ballistic Cannon . | . . . Launcher 1 | . . 1 Special Weapon . | . . . Impact Weapon . | . . . Slashing Weapon . | . . . Piercing Weapon . | . . . Special Melee Weapon . | . . . Unidentified Prototypes 1 | . 1 . Parts Lost 3 | . . 3 Power 1 | . . 1 Propulsion 1 | . . 1 Utility . | . . . Weapon 1 | . . 1 Highest Loss Streak 1 | . . 1 To Critical Strikes 1 | . . 1 Average Backups 7 | 1 6 8 Power 4 | . 4 4 Propulsion . | . . . Utility . | . . . Weapon 2 | . 1 3 Tool/Special . | . . . Unused Backups 6 | 1 . 5 Power 2 | . . 2 Propulsion 1 | 1 . . Utility 1 | . . 1 Weapon 2 | . . 2 Tool/Special . | . . . Average Slot Usage (%) 97 | . 97 97 Engine 12 | . 14 12 Treads 18 | . 28 13 Leg 8 | . . 13 Storage 14 | . 14 14 Protection 12 | . 11 14 Energy Gun 6 | . 14 2 Energy Cannon 5 | . . 8 Ballistic Gun 10 | . 14 8 Launcher 4 | . . 7 Peak Build Rating 16 | 6 11 16 Average Rating 11 | 4 10 13 On Entrance 5 | . 6 11 Avg Prop Armor Cover (%) . | . . . Naked Turns . | . . . Heaviest Build 30 | 13 23 30 Greatest Support 40 | 40 40 40 Greatest Overweight (x) 1 | . . 1 Average Overweight (x) . | . . . Largest Inventory Capacity 10 | 8 10 10 Average Capacity 9 | 7 9 10 Most Carried 10 | 5 8 10 Average Carried 7 | 1 6 8 Final Capacity 10 | 8 10 10 Final Carried 10 | 1 7 10 Class Distribution -------------------- 100% | Mutant Dominant Class ---------------- Mutant | -10/Materials Mutant | -10/Subcaves Resources | -11 -10 -10 ----------- Run | Yrd Mat Sub Matter Collected 746 | 260 168 318 Remotely . | . . . Salvage Created 581 | . 294 287 Parts 33 | . 13 20 Haulers Intercepted . | . . . Recyclers Shooed . | . . . Parts Field Recycled . | . . . Retrieved Matter . | . . . Parts Self-Destructed 4 | . . 4 Prevented . | . . . Parts Restored . | . . . Kills | -11 -10 -10 ------- Run | Yrd Mat Sub Combat Hostiles Destroyed 15 | . 6 9 Guns 8 | . 6 2 Cannons 6 | . . 6 AOE 1 | . . 1 Classes Destroyed 4 | . 2 2 Watcher 2 | . 2 . Grunt 7 | . 6 1 Sentry 1 | . . 1 Subdweller 7 | . . 7 Best Kill Streak 2 | . 2 2 Combat Bots Only 2 | . 2 2 Max Kills in Single Turn 2 | . 2 1 Gunslinging 1 | . 1 . Exploded 1 | . . 1 Melee . | . . . Uniques/NPCs Destroyed . | . . . Combat | -11 -10 -10 -------- Run | Yrd Mat Sub Hostile Shots Fired 100 | . 26 74 Missed 37 | . 10 27 Hits 63 | . 16 47 Projectile 63 | . 16 47 Critical Strikes 3 | . . 3 Damage Taken 955 | . 176 779 Core 255 | . 29 226 Absorbed by Shields . | . . . Redirected to Shielding 29 | . 4 25 Ignored by Resistances 276 | . 53 223 Core Remaining (%) 100 | 100 . . Volleys Fired 89 | . 35 54 Largest 2 | . 2 2 Hottest 110 | . 63 110 Shots Fired 157 | . 67 90 Gun 118 | . 67 51 Cannon 27 | . . 27 Launcher 12 | . . 12 Special . | . . . Kinetic 85 | . 35 50 Thermal 60 | . 32 28 Explosive 12 | . . 12 Electromagnetic . | . . . Robot Hit Streak 42 | . 11 42 Robot Miss Streak 3 | . 3 1 Penetration Max . | . . . Secondary Targets 2 | . 2 . Max Gunslinging Chain 1 | . 1 . Shots Hit Robots 105 | . 45 60 Core Hits 31 | . 19 12 Critical Kills . | . . . Critical Parts Destroyed 1 | . . 1 Critical Strikes 1 | . . 1 Destroy 1 | . . 1 Melee Attacks . | . . . Impact . | . . . Slashing . | . . . Piercing . | . . . Sneak Attacks . | . . . Combat Hostiles . | . . . Follow-up Attacks . | . . . Damage Inflicted 1880 | . 588 1292 Guns 1090 | . 588 502 Cannons 520 | . . 520 Explosions 270 | . . 270 Melee . | . . . Ramming . | . . . Kinetic 849 | . 358 491 Thermal 761 | . 230 531 Explosive 270 | . . 270 Electromagnetic . | . . . Impact . | . . . Slashing . | . . . Piercing . | . . . Highest Corruption 2 | . 2 2 Average Corruption 1 | . 1 2 Corruption Purged . | . . . Corruption Blocked . | . . . Effects 23 | . 6 17 Message Errors 8 | . 1 7 Matter Fused 7 | . 3 4 Heat Flow Errors 1 | . . 1 Energy Discharges 2 | . 1 1 Parts Fused 1 | . . 1 Data Loss (minor) 1 | . 1 . Data Loss (major) 1 | . . 1 Misfires 2 | . . 2 Overload Shots . | . . . Overflow Damage 10 | . . 10 Projectiles . | . . . Explosions 10 | . . 10 Melee . | . . . Knockbacks . | . . . Impact . | . . . Kinetic . | . . . Secondary . | . . . Self-Inflicted Damage 90 | . . 90 Shots 6 | . . 6 Rammed . | . . . Targets Rammed . | . . . Kicked . | . . . Crushed . | . . . Highest Temperature 213 | . 102 213 Average Temperature 35 | . 32 39 Received Heat Transfer 530 | . 126 404 Siege Activations . | . . . Martial Activations . | . . . Shielding Activations . | . . . Robots Disrupted . | . . . Combat Hostiles . | . . . Robots Corrupted . | . . . Combat Hostiles . | . . . Parts Fried . | . . . Impact Corruptions . | . . . Robots Melted . | . . . Combat Hostiles . | . . . Parts Melted 2 | . . 2 Heat Transferred 1253 | . 525 728 Parts Sabotaged . | . . . Parts Stolen . | . . . Parts Stripped . | . . . Power Chain Reactions . | . . . Alert | -11 -10 -10 ------- Run | Yrd Mat Sub Maximum Alert Level . | . . . Low Security (%) 100 | 100 100 . Level 1 . | . . . Level 2 . | . . . Level 3 . | . . . Level 4 . | . . . Level 5 . | . . . High Security . | . . . Max Security . | . . . Peak Influence 50 | . 50 . Initial . | . . . Average 8 | . 9 . Influence Increases 205 | . 165 40 Destroy 0b10 Robot/C 160 | . 120 40 Destroy 0b10 Robot/NC 10 | . 10 . Destroy Leader 34 | . 34 . Destroy Structure 1 | . 1 . Influence Decreases 205 | . 165 40 Time Decay 205 | . 165 40 Squads Dispatched . | . . . Investigation . | . . . Extermination . | . . . Reinforcement . | . . . Assault . | . . . Garrison . | . . . Intercept . | . . . Searches Triggered . | . . . Construction Impeded . | . . . Haulers Reinforced . | . . . Active Scanning Responses . | . . . Cargo Convoy Interrupts . | . . . Stealth | -11 -10 -10 --------- Run | Yrd Mat Sub Distress Signals . | . . . Communications Jammed . | . . . Distress Signals . | . . . Times Spotted 24 | . 12 12 Peak Tracking Total 2 | . 2 2 Tactical Retreats 2 | . . 2 Traps | -11 -10 -10 ------- Run | Yrd Mat Sub Traps Triggered 2 | . 2 . Indirectly . | . . . Trap Hack Attempts . | . . . Triggered . | . . . Disarmed . | . . . Reprogrammed . | . . . Reused . | . . . Traps Extracted . | . . . Installed . | . . . Triggered . | . . . Machines | -11 -10 -10 ---------- Run | Yrd Mat Sub Machines Disabled . | . . . Max in Single Turn . | . . . Machines Repaired . | . . . Machines Dismantled . | . . . Machines Sabotaged . | . . . Overloaded Fab Kills . | . . . Hacking | -11 -10 -10 --------- Run | Yrd Mat Sub Machines Accessed . | . . . Terminals . | . . . Fabricators . | . . . Repair Stations . | . . . Recycling Units . | . . . Scanalyzers . | . . . Garrison Access . | . . . Total Hacks . | . . . Successful . | . . . Failed . | . . . Catastrophic . | . . . Database Lockouts . | . . . Manual . | . . . Terminals . | . . . Fabricators . | . . . Repair Stations . | . . . Recycling Units . | . . . Scanalyzers . | . . . Garrison Access . | . . . Terminal Hacks . | . . . Fabricator Hacks . | . . . Repair Station Hacks . | . . . Recycling Unit Hacks . | . . . Scanalyzer . | . . . Garrison Access Hacks . | . . . Unauthorized Hacks . | . . . Terminals . | . . . Fabricators . | . . . Repair Stations . | . . . Recycling Units . | . . . Scanalyzers . | . . . Garrison Access . | . . . Data Cores Recovered . | . . . Used . | . . . Hacking Detections . | . . . Full Trace Events . | . . . Feedback Events . | . . . Feedback Blocked . | . . . Robot Schematics Acquired . | . . . Robots Built . | . . . Authchips . | . . . Time . | . . . Total Robot Build Rating . | . . . Part Schematics Acquired . | . . . Parts Built . | . . . Authchips . | . . . Time . | . . . Total Part Build Rating . | . . . Part Studies Acquired . | . . . Parts Repaired . | . . . Time . | . . . Parts Recycled . | . . . Recycled Matter . | . . . Retrieved Matter . | . . . Retrieved Components . | . . . Parts Scanalyzed . | . . . Part Schematics Acquired . | . . . Parts Damaged . | . . . Bothacking | -11 -10 -10 ------------ Run | Yrd Mat Sub Used RIF Installer . | . . . Robots Hacked . | . . . Non-combat . | . . . Combat . | . . . Robot Hacks Applied . | . . . Relay Couplers Released . | . . . Fabnet Peak Effective % . | . . . Robots Rewired . | . . . Allies Hacked . | . . . Hacks Repelled . | . . . Allies | -11 -10 -10 -------- Run | Yrd Mat Sub Total Allies . | . . . Largest Group . | . . . Highest-Rated Group . | . . . Highest-Rated Ally . | . . . Total Orders . | . . . Ally Attacks . | . . . Total Damage . | . . . Kills . | . . . Allies Corrupted . | . . . Allies Melted 1 | . . 1 Intel | -11 -10 -10 ------- Run | Yrd Mat Sub Active Infowar (turns) . | . . . Robot Analysis Total . | . . . Derelict Logs Recovered 1 | . . 1 Drone Launches . | . . . Drone Recoveries . | . . . Exploration | -11 -10 -10 ------------- Run | Yrd Mat Sub Turns Passed 2147 | 78 749 1320 Spaces Moved 1198 | 47 390 761 Core 14 | 14 . . Treads 755 | 33 390 332 Legs 429 | . . 429 Wheels . | . . . Hover . | . . . Flight . | . . . Fastest Speed 50 | 50 160 140 Average Speed 152 | 127 160 150 Slowest Speed 240 | 160 160 240 Overloaded Moves . | . . . Propulsion Burnouts . | . . . Robots Hopped . | . . . Potential Cave-ins . | . . . Cave-ins Triggered . | . . . Exploration Rate (%) 42 | 4 77 45 Regions Visited 2 Branch Regions 1 Pre-discovered Areas . | . . . Known Exits Taken . | . . . Unknown Exits Taken 2 | 1 1 . Scrap Searched . | . . . Spaces Dug . | . . . Terrain Destroyed 75 | . . 75 Melee . | . . . Projectile 1 | . . 1 AOE 74 | . . 74 Terrain Rammed . | . . . Walls Destroyed . | . . . Machines Disabled . | . . . Actions | -11 -10 -10 --------- Run | Yrd Mat Sub Total 1374 | 66 453 855 Wait 35 | 5 7 23 Move 1196 | 46 389 761 Hop . | . . . Pick Up 24 | 8 10 6 Fast Attach . | . . . Attach 11 | 6 2 3 Detach 1 | . 1 . Swap 13 | . 6 7 Drop 5 | 1 3 1 Fire 89 | . 35 54 Melee . | . . . Ram . | . . . Kick . | . . . Crush . | . . . Escape Stasis . | . . . Rewire . | . . . Trap . | . . . Miscellaneous . | . . . Route ------- -11/Scrapyard -10/Materials (discovered 4 exits: [*Mat x2] / [*Min] / [*Sub]) -10/Subcaves History --------- Turn | Location | Event 14 | -11/Scrapyard | Discovered new exit (range 16) 79 | -11/Scrapyard | Entered Materials 306 | -10/Materials | Build established: Mutant 361 | -10/Materials | Discovered new exit (range 8) 478 | -10/Materials | Discovered new exit (range 16) 544 | -10/Materials | Discovered new exit (range 16) 814 | -10/Materials | Discovered new exit (range 10) 828 | -10/Materials | Entered Subcaves 829 | -10/Subcaves | Approached by a straggling Scientist 1294 | -10/Subcaves | Core integrity fell below 50% 1441 | -10/Subcaves | Core integrity fell below 20% 1809 | -10/Subcaves | Shifting Twisted Machinery released Sub. Power Source 1838 | -10/Subcaves | Learned 4 Materials zone layouts 2081 | -10/Subcaves | Shifting Twisted Machinery released Barrage Gun 2148 | -10/Subcaves | Destroyed by YX-3NY(R) with Subdweller Beam Cannon Last Messages --------------- System corrupted: Grenade Launcher misfires. Sub. Power Source falls loose from the Twisted Machinery. Acquired derelict log, extracted data. Data stored: Materials zone layouts (x4). BXQVALADVLGMS5O6PBGRU< System corrupted: FCS attempts to trigger Sub. Beam Cannon. System corrupted: Sub. Beam Cannon misfires. System corrupted: Heat flow error (+253). JFS1SSU2TA